Department Family,Entity,Date Paid,Expense Type,Expense Area,Supplier,Transaction Number,Amount (�),Supplier VAT Registration Number
BEIS,Met Office,2022-06-08,06 ACCOMMODATION,CHIEF FINANCIAL OFFICER,ABOVE THE REST COMMERCIAL CLEANING LTD,468663,38,166969348
BEIS,Met Office,2022-06-28,06 ACCOMMODATION,CHIEF FINANCIAL OFFICER,ABOVE THE REST COMMERCIAL CLEANING LTD,469307,41,166969348
BEIS,Met Office,2022-06-07,06 ACCOMMODATION,CHIEF FINANCIAL OFFICER,ABOVE THE REST COMMERCIAL CLEANING LTD,468597,565,166969348
BEIS,Met Office,2022-06-08,06 ACCOMMODATION,CHIEF FINANCIAL OFFICER,ABOVE THE REST COMMERCIAL CLEANING LTD,468664,565,166969348
BEIS,Met Office,2022-06-20,06 ACCOMMODATION,CHIEF FINANCIAL OFFICER,ABOVE THE REST COMMERCIAL CLEANING LTD,469005,565,166969348
BEIS,Met Office,2022-06-15,SOFTWARE LICENCES,CHIEF FINANCIAL OFFICER,ADVANCED BUSINESS SOLUTIONS LTD,468832,1912.5,927547983
BEIS,Met Office,2022-06-28,11 SERVICES,CHIEF FINANCIAL OFFICER,ALCUMUS SYPOL LTD,469247,12583,945 7777 63
BEIS,Met Office,2022-06-17,11 SERVICES,CHIEF FINANCIAL OFFICER,ALLSTAR BUSINESS SOLUTIONS LTD,468968,3065.99,747880191
BEIS,Met Office,2022-06-06,11 SERVICES,CHIEF FINANCIAL OFFICER,ALLSTAR BUSINESS SOLUTIONS LTD,468537,3368.31,747880191
BEIS,Met Office,2022-06-07,06 ACCOMMODATION,CHIEF FINANCIAL OFFICER,ANGLIAN WATER BUSINESS NATIONAL LTD,468625,31.34,51406002
BEIS,Met Office,2022-06-15,11 SERVICES,CHIEF FINANCIAL OFFICER,ANVIL MOBILE LIMITED,468834,370.95,981686175
BEIS,Met Office,2022-06-20,03 STAFF COSTS T&S,CHIEF FINANCIAL OFFICER,APPLE CENTRAL TAXIS,469002,1035,449238720
BEIS,Met Office,2022-06-30,13 MISCELLANEOUS,CHIEF FINANCIAL OFFICER,ARTHUR J. GALLAGHER INSURANCE BROKERS LIMITED,469421,9800,GB484746209
BEIS,Met Office,2022-06-28,13 MISCELLANEOUS,CHIEF FINANCIAL OFFICER,ARTHUR J. GALLAGHER INSURANCE BROKERS LIMITED,469226,55440,GB484746209
BEIS,Met Office,2022-06-08,11 SERVICES,CHIEF FINANCIAL OFFICER,BABBLE CLOUD LIMITED,468643,1869.65,GB206270049
BEIS,Met Office,2022-06-08,11 SERVICES,CHIEF FINANCIAL OFFICER,BABBLE CLOUD LIMITED,468644,1896.91,GB206270049
BEIS,Met Office,2022-06-06,13 MISCELLANEOUS,CHIEF FINANCIAL OFFICER,BANNER GROUP LIMITED,468552,22.3,GB391085740
BEIS,Met Office,2022-06-30,06 ACCOMMODATION,CHIEF FINANCIAL OFFICER,Belfast International Airport Ltd,469320,260,617777601
BEIS,Met Office,2022-06-01,06 ACCOMMODATION,CHIEF FINANCIAL OFFICER,Belfast International Airport Ltd,468453,1694.28,617777601
BEIS,Met Office,2022-06-22,06 ACCOMMODATION,CHIEF FINANCIAL OFFICER,BIDVEST NOONAN UK LTD,469124,46.22,GB847176988
BEIS,Met Office,2022-06-22,06 ACCOMMODATION,CHIEF FINANCIAL OFFICER,BIDVEST NOONAN UK LTD,469124,61.63,GB847176988
BEIS,Met Office,2022-06-07,06 ACCOMMODATION,CHIEF FINANCIAL OFFICER,BIDVEST NOONAN UK LTD,468553,163.64,GB847176988
BEIS,Met Office,2022-06-22,06 ACCOMMODATION,CHIEF FINANCIAL OFFICER,BIDVEST NOONAN UK LTD,469124,349.46,GB847176988
BEIS,Met Office,2022-06-23,06 ACCOMMODATION,CHIEF FINANCIAL OFFICER,BIDVEST NOONAN UK LTD,469126,1013.83,GB847176988
BEIS,Met Office,2022-06-22,06 ACCOMMODATION,CHIEF FINANCIAL OFFICER,British Gas Trading Ltd,469085,3.96,684966762
BEIS,Met Office,2022-06-22,06 ACCOMMODATION,CHIEF FINANCIAL OFFICER,British Gas Trading Ltd,469088,22.42,684966762
BEIS,Met Office,2022-06-22,06 ACCOMMODATION,CHIEF FINANCIAL OFFICER,British Gas Trading Ltd,469086,30.51,684966762
BEIS,Met Office,2022-06-22,06 ACCOMMODATION,CHIEF FINANCIAL OFFICER,British Gas Trading Ltd,469087,58.02,684966762
BEIS,Met Office,2022-06-20,11 SERVICES,CHIEF FINANCIAL OFFICER,BT GLOBAL SERVICES,468965,780.52,245719348
BEIS,Met Office,2022-06-13,11 SERVICES,CHIEF FINANCIAL OFFICER,BT GLOBAL SERVICES,468740,11584.21,245719348
BEIS,Met Office,2022-06-06,11 SERVICES,CHIEF FINANCIAL OFFICER,BT GLOBAL SERVICES,468511,11584.33,245719348
BEIS,Met Office,2022-06-22,11 SERVICES,CHIEF FINANCIAL OFFICER,BT plc,469069,876.22,245719348
BEIS,Met Office,2022-06-28,11 SERVICES,CHIEF FINANCIAL OFFICER,BT plc,469254,876.22,245719348
BEIS,Met Office,2022-06-06,11 SERVICES,CHIEF FINANCIAL OFFICER,BT plc,468448,10263,245719348
BEIS,Met Office,2022-06-14,06 ACCOMMODATION,CHIEF FINANCIAL OFFICER,BUSINESS SUPPORT CENTRE LTD,468830,37.85,927365208
BEIS,Met Office,2022-06-27,06 ACCOMMODATION,CHIEF FINANCIAL OFFICER,BUSINESS SUPPORT CENTRE LTD,469234,1027.28,927365208
BEIS,Met Office,2022-06-06,13 MISCELLANEOUS,CHIEF FINANCIAL OFFICER,CANON UK LTD,468544,648.06,523797128
BEIS,Met Office,2022-06-24,06 ACCOMMODATION,CHIEF FINANCIAL OFFICER,CARDIFF COMMISSIONING LTD,469170,675,484190139
BEIS,Met Office,2022-06-22,13 MISCELLANEOUS,CHIEF FINANCIAL OFFICER,CARDIFF EXECUTIVE CENTRE LTD,469079,14.28,864497378
BEIS,Met Office,2022-06-07,06 ACCOMMODATION,CHIEF FINANCIAL OFFICER,CBRE LTD,468659,15000,GB 736 3179 23
BEIS,Met Office,2022-06-30,06 ACCOMMODATION,CHIEF FINANCIAL OFFICER,CBRE MANAGED SERVICES LTD,469354,1174.82,853936883
BEIS,Met Office,2022-06-23,PLANT AND EQUIPMENT,CHIEF FINANCIAL OFFICER,CBRE MANAGED SERVICES LTD,469140,10283.7,853936883
BEIS,Met Office,2022-06-30,06 ACCOMMODATION,CHIEF FINANCIAL OFFICER,CBRE MANAGED SERVICES LTD,469353,17840.88,853936883
BEIS,Met Office,2022-06-23,06 ACCOMMODATION,CHIEF FINANCIAL OFFICER,CBRE MANAGED SERVICES LTD,469138,25407.88,853936883
BEIS,Met Office,2022-06-30,06 ACCOMMODATION,CHIEF FINANCIAL OFFICER,CBRE MANAGED SERVICES LTD,469352,27142.61,853936883
BEIS,Met Office,2022-06-23,06 ACCOMMODATION,CHIEF FINANCIAL OFFICER,CBRE MANAGED SERVICES LTD,469141,149176.92,853936883
BEIS,Met Office,2022-06-21,08 SOFTWARE LICENCES,CHIEF FINANCIAL OFFICER,CEMAR,469037,14,915042161
BEIS,Met Office,2022-06-21,08 SOFTWARE LICENCES,CHIEF FINANCIAL OFFICER,CEMAR,469037,49,915042161
BEIS,Met Office,2022-06-13,06 ACCOMMODATION,CHIEF FINANCIAL OFFICER,D&G OFFICE SERVICES LTD,468827,282,272997547
BEIS,Met Office,2022-06-13,06 ACCOMMODATION,CHIEF FINANCIAL OFFICER,D&G OFFICE SERVICES LTD,468827,282,272997547
BEIS,Met Office,2022-06-23,FIXTURE & FITTINGS,CHIEF FINANCIAL OFFICER,D&G OFFICE SERVICES LTD,469179,2621,272997547
BEIS,Met Office,2022-06-29,11 SERVICES,CHIEF FINANCIAL OFFICER,DBS FINANCE RECEIPTS CTS,23950,167.58,888805068
BEIS,Met Office,2022-06-29,13 MISCELLANEOUS,CHIEF FINANCIAL OFFICER,DEMSTAR BUSINESS SOLUTIONS LTD,23912,85.8,10156145J
BEIS,Met Office,2022-06-08,13 MISCELLANEOUS,CHIEF FINANCIAL OFFICER,DEMSTAR BUSINESS SOLUTIONS LTD,23828,102.72,10156145J
BEIS,Met Office,2022-06-28,06 ACCOMMODATION,CHIEF FINANCIAL OFFICER,DUNSTAFFNAGE ESTATE,469308,750,-
BEIS,Met Office,2022-06-07,13 MISCELLANEOUS,CHIEF FINANCIAL OFFICER,DWYFOR COFFEE COMPANY LTD,468121,-23.82,559811116
BEIS,Met Office,2022-06-07,13 MISCELLANEOUS,CHIEF FINANCIAL OFFICER,DWYFOR COFFEE COMPANY LTD,468609,32.6,559811116
BEIS,Met Office,2022-06-08,13 MISCELLANEOUS,CHIEF FINANCIAL OFFICER,EAST ANGLIAN WATER COOLER CO,468595,37.1,676668178
BEIS,Met Office,2022-06-16,06 ACCOMMODATION,CHIEF FINANCIAL OFFICER,Eden District Council,468901,598.8,257205566
BEIS,Met Office,2022-06-16,06 ACCOMMODATION,CHIEF FINANCIAL OFFICER,EDF ENERGY CUSTOMERS PLC,468849,5082.79,523041202
BEIS,Met Office,2022-06-13,06 ACCOMMODATION,CHIEF FINANCIAL OFFICER,EDF ENERGY CUSTOMERS PLC,468775,162998.12,523041202
BEIS,Met Office,2022-06-13,06 ACCOMMODATION,CHIEF FINANCIAL OFFICER,EDF ENERGY CUSTOMERS PLC,468774,171990.41,523041202
BEIS,Met Office,2022-06-13,06 ACCOMMODATION,CHIEF FINANCIAL OFFICER,EDF ENERGY CUSTOMERS PLC,468776,457035.17,523041202
BEIS,Met Office,2022-06-01,11 SERVICES,CHIEF FINANCIAL OFFICER,EIR,23877,51.31,4736919B
BEIS,Met Office,2022-06-22,03 STAFF COSTS T&S,CHIEF FINANCIAL OFFICER,ENTERPRISE RENT A CAR UK LTD,469101,75,215557314
BEIS,Met Office,2022-06-14,03 STAFF COSTS T&S,CHIEF FINANCIAL OFFICER,ENTERPRISE RENT A CAR UK LTD,468858,119.4,215557314
BEIS,Met Office,2022-06-27,03 STAFF COSTS T&S,CHIEF FINANCIAL OFFICER,ENTERPRISE RENT A CAR UK LTD,469257,183,215557314
BEIS,Met Office,2022-06-23,03 STAFF COSTS T&S,CHIEF FINANCIAL OFFICER,ENTERPRISE RENT A CAR UK LTD,469026,303.8,215557314
BEIS,Met Office,2022-06-14,03 STAFF COSTS T&S,CHIEF FINANCIAL OFFICER,ENTERPRISE RENT A CAR UK LTD,468851,435.5,215557314
BEIS,Met Office,2022-06-01,03 STAFF COSTS T&S,CHIEF FINANCIAL OFFICER,ENTERPRISE RENT A CAR UK LTD,468512,717.53,215557314
BEIS,Met Office,2022-06-07,03 STAFF COSTS T&S,CHIEF FINANCIAL OFFICER,ENTERPRISE RENT A CAR UK LTD,468617,914.96,215557314
BEIS,Met Office,2022-06-14,03 STAFF COSTS T&S,CHIEF FINANCIAL OFFICER,ENTERPRISE RENT A CAR UK LTD,468850,1576.07,215557314
BEIS,Met Office,2022-06-01,03 STAFF COSTS T&S,CHIEF FINANCIAL OFFICER,ENTERPRISE RENT A CAR UK LTD,468556,1875.02,215557314
BEIS,Met Office,2022-06-20,03 STAFF COSTS T&S,CHIEF FINANCIAL OFFICER,ENTERPRISE RENT A CAR UK LTD,469025,2364.76,215557314
BEIS,Met Office,2022-06-27,03 STAFF COSTS T&S,CHIEF FINANCIAL OFFICER,ENTERPRISE RENT A CAR UK LTD,469256,2943.15,215557314
BEIS,Met Office,2022-06-15,06 ACCOMMODATION,CHIEF FINANCIAL OFFICER,Exeter City Council,468904,5049,142335594
BEIS,Met Office,2022-06-14,06 ACCOMMODATION,CHIEF FINANCIAL OFFICER,Exeter City Council,465748,140288,142335594
BEIS,Met Office,2022-06-14,11 SERVICES,CHIEF FINANCIAL OFFICER,EXPONENTIAL-E,468829,639.64,GB798572653
BEIS,Met Office,2022-06-28,06 ACCOMMODATION,CHIEF FINANCIAL OFFICER,FUTURE CLEANING SERVICES (SW) LTD.,441596,383.91,756916489
BEIS,Met Office,2022-06-14,11 SERVICES,CHIEF FINANCIAL OFFICER,GAMMA TELECOM LTD,468846,134.58,823820344
BEIS,Met Office,2022-06-14,11 SERVICES,CHIEF FINANCIAL OFFICER,GAMMA TELECOM LTD,468846,27455.26,823820344
BEIS,Met Office,2022-06-07,13 MISCELLANEOUS,CHIEF FINANCIAL OFFICER,GARTNER UK LTD,468618,19800,635878884
BEIS,Met Office,2022-06-14,11 SERVICES,CHIEF FINANCIAL OFFICER,GB GROUP PLC,468818,519.23,539716218
BEIS,Met Office,2022-06-28,06 ACCOMMODATION,CHIEF FINANCIAL OFFICER,GREENSTAR CLEANERS LTD,469246,204.6,492376222
BEIS,Met Office,2022-06-22,06 ACCOMMODATION,CHIEF FINANCIAL OFFICER,GREENSTAR CLEANERS LTD,469122,360.35,492376222
BEIS,Met Office,2022-06-22,13 MISCELLANEOUS,CHIEF FINANCIAL OFFICER,HEALIX INSURANCE SERVICES LTD,468993,815.25,-
BEIS,Met Office,2022-06-22,13 MISCELLANEOUS,CHIEF FINANCIAL OFFICER,HEALIX INSURANCE SERVICES LTD,468993,5307.44,-
BEIS,Met Office,2022-06-20,13 MISCELLANEOUS,CHIEF FINANCIAL OFFICER,HEALIX INTERNATIONAL,468992,2061.6,127632909
BEIS,Met Office,2022-06-24,06 ACCOMMODATION,CHIEF FINANCIAL OFFICER,HUNTSHAM ESTATE - CROSS NO.1 SETTLEMENT,469104,5065.16,-
BEIS,Met Office,2022-06-21,06 ACCOMMODATION,CHIEF FINANCIAL OFFICER,I J CANNINGS & SON LTD,437388,798.66,192803203
BEIS,Met Office,2022-06-20,11 SERVICES,CHIEF FINANCIAL OFFICER,INTEROUTE COMMUNICATIONS LIMITED,468962,-375,832 7071 39
BEIS,Met Office,2022-06-20,11 SERVICES,CHIEF FINANCIAL OFFICER,INTEROUTE COMMUNICATIONS LIMITED,468961,7100,832 7071 39
BEIS,Met Office,2022-06-13,11 SERVICES,CHIEF FINANCIAL OFFICER,JERSEY TELECOM,468773,1284.32,NOTVATREG
BEIS,Met Office,2022-06-06,06 ACCOMMODATION,CHIEF FINANCIAL OFFICER,Lars Communications Ltd,468543,7451.51,531463858
BEIS,Met Office,2022-06-28,11 SERVICES,CHIEF FINANCIAL OFFICER,LEASEDRIVE RENTAL MANAGEMENT LTD,469119,-9.95,733546040
BEIS,Met Office,2022-06-28,11 SERVICES,CHIEF FINANCIAL OFFICER,LEASEDRIVE RENTAL MANAGEMENT LTD,466486,9.95,733546040
BEIS,Met Office,2022-06-28,11 SERVICES,CHIEF FINANCIAL OFFICER,LEASEDRIVE RENTAL MANAGEMENT LTD,469310,1088.75,733546040
BEIS,Met Office,2022-06-14,06 ACCOMMODATION,CHIEF FINANCIAL OFFICER,LHR BUSINESS SUPPORT CENTRE LTD,468828,3062.92,927365404
BEIS,Met Office,2022-06-30,11 SERVICES,CHIEF FINANCIAL OFFICER,LICENCE BUREAU LTD,469367,65.05,820219467
BEIS,Met Office,2022-06-14,11 SERVICES,CHIEF FINANCIAL OFFICER,MAWASEM LTD,468903,192137.2,197694731
BEIS,Met Office,2022-06-30,11 SERVICES,CHIEF FINANCIAL OFFICER,METRIKUS LIMITED,469346,4770,321 8772 02
BEIS,Met Office,2022-06-08,11 SERVICES,CHIEF FINANCIAL OFFICER,MITIE SECURITY LTD,468599,33,416706654
BEIS,Met Office,2022-06-09,11 SERVICES,CHIEF FINANCIAL OFFICER,MITIE SECURITY LTD,468669,139.6,416706654
BEIS,Met Office,2022-06-08,11 SERVICES,CHIEF FINANCIAL OFFICER,MITIE SECURITY LTD,468600,907.5,416706654
BEIS,Met Office,2022-06-08,11 SERVICES,CHIEF FINANCIAL OFFICER,MITIE SECURITY LTD,468598,1408.17,416706654
BEIS,Met Office,2022-06-08,06 ACCOMMODATION,CHIEF FINANCIAL OFFICER,MOUNT CHARLES GROUP LTD,468649,576.36,517116274
BEIS,Met Office,2022-06-27,07 EQUIPMENT,CHIEF FINANCIAL OFFICER,NATWEST COMMERCIAL CARDS DIVISION,469040,5852.26,N/A
BEIS,Met Office,2022-06-23,13 MISCELLANEOUS,CHIEF FINANCIAL OFFICER,NORSCOTT VENDING SERVICES LTD,469139,5.7,751402071
BEIS,Met Office,2022-06-09,13 MISCELLANEOUS,CHIEF FINANCIAL OFFICER,NORSCOTT VENDING SERVICES LTD,468712,85,751402071
BEIS,Met Office,2022-06-29,06 ACCOMMODATION,CHIEF FINANCIAL OFFICER,OCS Group UK Limited,469305,42708.4,GB238034379
BEIS,Met Office,2022-06-29,06 ACCOMMODATION,CHIEF FINANCIAL OFFICER,OCS Group UK Limited,469305,110148.22,GB238034379
BEIS,Met Office,2022-06-22,11 SERVICES,CHIEF FINANCIAL OFFICER,OPEN TEXT UK LTD,469070,100,837871308
BEIS,Met Office,2022-06-22,11 SERVICES,CHIEF FINANCIAL OFFICER,OPEN TEXT UK LTD,469071,100,837871308
BEIS,Met Office,2022-06-22,11 SERVICES,CHIEF FINANCIAL OFFICER,OPEN TEXT UK LTD,469073,100,837871308
BEIS,Met Office,2022-06-22,11 SERVICES,CHIEF FINANCIAL OFFICER,OPEN TEXT UK LTD,469074,100,837871308
BEIS,Met Office,2022-06-22,11 SERVICES,CHIEF FINANCIAL OFFICER,OPEN TEXT UK LTD,469075,100,837871308
BEIS,Met Office,2022-06-22,11 SERVICES,CHIEF FINANCIAL OFFICER,OPEN TEXT UK LTD,469076,100,837871308
BEIS,Met Office,2022-06-22,11 SERVICES,CHIEF FINANCIAL OFFICER,OPEN TEXT UK LTD,469077,100,837871308
BEIS,Met Office,2022-06-17,06 ACCOMMODATION,CHIEF FINANCIAL OFFICER,PLYMOUTH CITY COUNCIL NDR,468944,3542.9,-
BEIS,Met Office,2022-06-28,11 SERVICES,CHIEF FINANCIAL OFFICER,POSTURITE (UK) LTD,468661,50,583565114
BEIS,Met Office,2022-06-28,11 SERVICES,CHIEF FINANCIAL OFFICER,POSTURITE (UK) LTD,469236,50,583565114
BEIS,Met Office,2022-06-22,FIXTURE & FITTINGS,CHIEF FINANCIAL OFFICER,POSTURITE (UK) LTD,469028,89.9,583565114
BEIS,Met Office,2022-06-10,11 SERVICES,CHIEF FINANCIAL OFFICER,POSTURITE (UK) LTD,468707,612.53,583565114
BEIS,Met Office,2022-06-28,11 SERVICES,CHIEF FINANCIAL OFFICER,POSTURITE (UK) LTD,468559,787.71,583565114
BEIS,Met Office,2022-06-22,FIXTURE & FITTINGS,CHIEF FINANCIAL OFFICER,POSTURITE (UK) LTD,469028,1623.16,583565114
BEIS,Met Office,2022-06-21,06 ACCOMMODATION,CHIEF FINANCIAL OFFICER,POWER NI ENERGY LTD,468989,500.14,617518142
BEIS,Met Office,2022-06-21,06 ACCOMMODATION,CHIEF FINANCIAL OFFICER,POWER NI ENERGY LTD,468990,504.06,617518142
BEIS,Met Office,2022-06-01,03 STAFF COSTS T&S,CHIEF FINANCIAL OFFICER,RAINBOW CITY TAXIS,468555,38.7,724295039
BEIS,Met Office,2022-06-28,03 STAFF COSTS T&S,CHIEF FINANCIAL OFFICER,RAINBOW CITY TAXIS,469291,40.59,724295039
BEIS,Met Office,2022-06-16,06 ACCOMMODATION,CHIEF FINANCIAL OFFICER,REDACTED � PERSONAL DATA,468937,100,-
BEIS,Met Office,2022-06-06,06 ACCOMMODATION,CHIEF FINANCIAL OFFICER,REDACTED � PERSONAL DATA,468589,250,763130257
BEIS,Met Office,2022-06-22,06 ACCOMMODATION,CHIEF FINANCIAL OFFICER,REDACTED � PERSONAL DATA,468747,520,-
BEIS,Met Office,2022-06-14,06 ACCOMMODATION,CHIEF FINANCIAL OFFICER,REDACTED � PERSONAL DATA,468856,3000,300411928
BEIS,Met Office,2022-06-14,06 ACCOMMODATION,CHIEF FINANCIAL OFFICER,REDACTED � PERSONAL DATA,468826,4185.25,001874305
BEIS,Met Office,2022-06-08,06 ACCOMMODATION,CHIEF FINANCIAL OFFICER,RIVER RIDGE,468672,117.53,176286083
BEIS,Met Office,2022-06-08,13 MISCELLANEOUS,CHIEF FINANCIAL OFFICER,Royal Meteorological Society,468156,-103.43,-
BEIS,Met Office,2022-06-29,06 ACCOMMODATION,CHIEF FINANCIAL OFFICER,S M THERMAL IMAGING LIMITED,469290,150,202053964
BEIS,Met Office,2022-06-29,06 ACCOMMODATION,CHIEF FINANCIAL OFFICER,S M THERMAL IMAGING LIMITED,469290,3750,202053964
BEIS,Met Office,2022-06-21,06 ACCOMMODATION,CHIEF FINANCIAL OFFICER,SADDLES & PADDLES EXETER LTD,468936,65.24,152264528
BEIS,Met Office,2022-06-13,06 ACCOMMODATION,CHIEF FINANCIAL OFFICER,SAFESTORE LTD,468813,2815.28,722887607
BEIS,Met Office,2022-06-20,06 ACCOMMODATION,CHIEF FINANCIAL OFFICER,Severn Trent Water Ltd,469008,208.35,486985565
BEIS,Met Office,2022-06-20,06 ACCOMMODATION,CHIEF FINANCIAL OFFICER,Severn Trent Water Ltd,469010,253.22,486985565
BEIS,Met Office,2022-06-06,06 ACCOMMODATION,CHIEF FINANCIAL OFFICER,SHARED ACCESS LTD,468561,7759.29,920672730
BEIS,Met Office,2022-06-10,06 ACCOMMODATION,CHIEF FINANCIAL OFFICER,SHETLAND CLEANING SERVICES,468761,769.57,430028404
BEIS,Met Office,2022-06-27,06 ACCOMMODATION,CHIEF FINANCIAL OFFICER,Shetland Islands Council,469229,1237.6,267858304
BEIS,Met Office,2022-06-21,06 ACCOMMODATION,CHIEF FINANCIAL OFFICER,South West Water Ltd,469006,787.45,236873674
BEIS,Met Office,2022-06-28,06 ACCOMMODATION,CHIEF FINANCIAL OFFICER,South West Water Ltd,469309,4533.8,236873674
BEIS,Met Office,2022-06-27,06 ACCOMMODATION,CHIEF FINANCIAL OFFICER,ST MODWEN VENTURES LTD,469169,18.22,975081008
BEIS,Met Office,2022-06-30,06 ACCOMMODATION,CHIEF FINANCIAL OFFICER,ST MODWEN VENTURES LTD,469362,21.4,975081008
BEIS,Met Office,2022-06-15,11 SERVICES,CHIEF FINANCIAL OFFICER,SURE SOUTH ATLANTIC LTD,468897,783.46,-
BEIS,Met Office,2022-06-15,11 SERVICES,CHIEF FINANCIAL OFFICER,SURE SOUTH ATLANTIC LTD,468893,2168.79,NOVATREG
BEIS,Met Office,2022-06-15,11 SERVICES,CHIEF FINANCIAL OFFICER,SURE SOUTH ATLANTIC LTD,468898,4839.8,-
BEIS,Met Office,2022-06-15,11 SERVICES,CHIEF FINANCIAL OFFICER,SURE SOUTH ATLANTIC LTD (ST HELENA),468899,1650,30005
BEIS,Met Office,2022-06-01,11 SERVICES,CHIEF FINANCIAL OFFICER,SWISSCOM (SCHWEIZ) AG,467919,89.87,-
BEIS,Met Office,2022-06-07,06 ACCOMMODATION,CHIEF FINANCIAL OFFICER,TOP RANK CLEANING SERVICES LTD,468619,914,-
BEIS,Met Office,2022-06-01,06 ACCOMMODATION,CHIEF FINANCIAL OFFICER,TOTAL GAS & POWER LIMITED,468495,875.59,689638949
BEIS,Met Office,2022-06-28,06 ACCOMMODATION,CHIEF FINANCIAL OFFICER,TOTAL GAS & POWER LIMITED,469259,992.67,689638949
BEIS,Met Office,2022-06-30,06 ACCOMMODATION,CHIEF FINANCIAL OFFICER,TOTAL GAS & POWER LIMITED,469356,1191.2,689638949
BEIS,Met Office,2022-06-14,06 ACCOMMODATION,CHIEF FINANCIAL OFFICER,University Of Oxford,468857,308.22,125506730
BEIS,Met Office,2022-06-20,06 ACCOMMODATION,CHIEF FINANCIAL OFFICER,VICKERY HOLMAN,468984,4365.62,943875678
BEIS,Met Office,2022-06-16,11 SERVICES,CHIEF FINANCIAL OFFICER,Vodafone Ltd,468941,368.1,569953277
BEIS,Met Office,2022-06-01,11 SERVICES,CHIEF FINANCIAL OFFICER,WEBEX COMMUNICATIONS UK LTD,468484,209.92,815974302
BEIS,Met Office,2022-06-07,05 CONSULTANTS,CHIEF FINANCIAL OFFICER,WT CONSULTANCY (SW) LTD,468624,6825,223 4662 25
BEIS,Met Office,2022-06-09,11 SERVICES,MARKETS,ACCELERATION EMARKETING,468708,3970.52,848940776
BEIS,Met Office,2022-06-07,11 SERVICES,MARKETS,ADOPSTAR,468594,1250,115036848
BEIS,Met Office,2022-06-21,12 INTERNATIONAL,MARKETS,APPLIED SATELLITE TECHNOLOGY SYSTEMS LTD,469017,34.64,720108683
BEIS,Met Office,2022-06-20,13 MISCELLANEOUS,MARKETS,ARTHUR J. GALLAGHER INSURANCE BROKERS LIMITED,469007,4000,GB484746209
BEIS,Met Office,2022-06-29,13 MISCELLANEOUS,MARKETS,ARTHUR J. GALLAGHER INSURANCE BROKERS LIMITED,469228,7840,GB484746209
BEIS,Met Office,2022-06-08,REVENUE,MARKETS,Barcelona Supercomputing Center,23859,13522.6,ESS0800099D
BEIS,Met Office,2022-06-15,REVENUE,MARKETS,Barcelona Supercomputing Center,23856,24845.93,ESS0800099D
BEIS,Met Office,2022-06-22,11 SERVICES,MARKETS,"BASILIO SOZINHO CUBULA SERVI�OS, E.I.",10687,4990.68,N/A
BEIS,Met Office,2022-06-27,11 SERVICES,MARKETS,BITPOD LIMITED,469235,200,124 9359 03
BEIS,Met Office,2022-06-27,11 SERVICES,MARKETS,BITPOD LIMITED,469233,1987.25,124 9359 03
BEIS,Met Office,2022-06-22,11 SERVICES,MARKETS,BJSS LIMITED,468982,1262.5,613295452
BEIS,Met Office,2022-06-29,11 SERVICES,MARKETS,BJSS LIMITED,469324,2625,613295452
BEIS,Met Office,2022-06-15,11 SERVICES,MARKETS,BJSS LIMITED,468835,4650,613295452
BEIS,Met Office,2022-06-15,11 SERVICES,MARKETS,BJSS LIMITED,468836,19912.5,613295452
BEIS,Met Office,2022-06-07,11 SERVICES,MARKETS,CACI LTD,468166,-936,380609841
BEIS,Met Office,2022-06-07,11 SERVICES,MARKETS,CACI LTD,468622,95198.27,380609841
BEIS,Met Office,2022-06-13,03 STAFF COSTS T&S,MARKETS,CARTUS LTD,468475,-235.2,768489458
BEIS,Met Office,2022-06-13,03 STAFF COSTS T&S,MARKETS,CARTUS LTD,468473,117.6,768489458
BEIS,Met Office,2022-06-13,11 SERVICES,MARKETS,CENTRO INTERNACIONAL MEJORAMIENTO DE MAIZ Y T,468706,177577,CIM890330FI8
BEIS,Met Office,2022-06-15,11 SERVICES,MARKETS,CONSULTEC,23937,294.31,400005915
BEIS,Met Office,2022-06-08,11 SERVICES,MARKETS,CONSULTEC,23900,2554.46,400005915
BEIS,Met Office,2022-06-29,11 SERVICES,MARKETS,CONSULTEC,23952,2576.55,400005915
BEIS,Met Office,2022-06-29,11 SERVICES,MARKETS,CONSULTEC,23957,3521.28,400005915
BEIS,Met Office,2022-06-15,11 SERVICES,MARKETS,CONSULTEC,23936,7357.78,400005915
BEIS,Met Office,2022-06-29,11 SERVICES,MARKETS,CONSULTEC,23956,12188.81,400005915
BEIS,Met Office,2022-06-08,11 SERVICES,MARKETS,CONSULTEC,23898,12868.43,400005915
BEIS,Met Office,2022-06-08,11 SERVICES,MARKETS,CONSULTEC,23911,16087.15,400005915
BEIS,Met Office,2022-06-08,11 SERVICES,MARKETS,CONSULTEC,23899,20688.35,400005915
BEIS,Met Office,2022-06-15,11 SERVICES,MARKETS,Deltares,23931,8514.88,NL800097476B01
BEIS,Met Office,2022-06-15,REVENUE,MARKETS,ECMWF,23858,35675.88,NOTVATREG
BEIS,Met Office,2022-06-22,REVENUE,MARKETS,ECMWF,23876,37558.29,NOTVATREG
BEIS,Met Office,2022-06-01,12 INTERNATIONAL,MARKETS,ECOMET,23814,18351.59,EXEMPT
BEIS,Met Office,2022-06-30,08 SOFTWARE LICENCES,MARKETS,Esri (Uk) Ltd,469248,98875,787430791
BEIS,Met Office,2022-06-28,11 SERVICES,MARKETS,EYECADEMY LTD,469255,1050,GB937915092
BEIS,Met Office,2022-06-14,11 SERVICES,MARKETS,FCDO,468895,35.51,888813560
BEIS,Met Office,2022-06-28,11 SERVICES,MARKETS,FCDO,469223,5027.62,888813560
BEIS,Met Office,2022-06-29,11 SERVICES,MARKETS,"IBL SOFTWARE ENGINEERING, SPOL S.R.O.",23913,1004.76,SK2020241883
BEIS,Met Office,2022-06-08,08 SOFTWARE LICENCES,MARKETS,"IBL SOFTWARE ENGINEERING, SPOL S.R.O.",23835,3825.82,SK2020241883
BEIS,Met Office,2022-06-29,11 SERVICES,MARKETS,"IBL SOFTWARE ENGINEERING, SPOL S.R.O.",23913,5091.05,SK2020241883
BEIS,Met Office,2022-06-08,08 SOFTWARE LICENCES,MARKETS,"IBL SOFTWARE ENGINEERING, SPOL S.R.O.",23845,6664.97,SK2020241883
BEIS,Met Office,2022-06-01,08 SOFTWARE LICENCES,MARKETS,"IBL SOFTWARE ENGINEERING, SPOL S.R.O.",23827,9222.72,SK2020241883
BEIS,Met Office,2022-06-29,11 SERVICES,MARKETS,"IBL SOFTWARE ENGINEERING, SPOL S.R.O.",23913,10020.31,SK2020241883
BEIS,Met Office,2022-06-29,11 SERVICES,MARKETS,"IBL SOFTWARE ENGINEERING, SPOL S.R.O.",23913,10768.77,SK2020241883
BEIS,Met Office,2022-06-29,11 SERVICES,MARKETS,"IBL SOFTWARE ENGINEERING, SPOL S.R.O.",23913,19069.92,SK2020241883
BEIS,Met Office,2022-06-29,11 SERVICES,MARKETS,"IBL SOFTWARE ENGINEERING, SPOL S.R.O.",23913,50907.05,SK2020241883
BEIS,Met Office,2022-06-29,11 SERVICES,MARKETS,"IBL SOFTWARE ENGINEERING, SPOL S.R.O.",23913,50907.05,SK2020241883
BEIS,Met Office,2022-06-29,11 SERVICES,MARKETS,"IBL SOFTWARE ENGINEERING, SPOL S.R.O.",23913,107691.06,SK2020241883
BEIS,Met Office,2022-06-22,08 SOFTWARE LICENCES,MARKETS,"IBL SOFTWARE ENGINEERING, SPOL S.R.O.",23893,469302.35,SK2020241883
BEIS,Met Office,2022-06-08,11 SERVICES,MARKETS,ICIMOD,10652,9651.27,-
BEIS,Met Office,2022-06-08,11 SERVICES,MARKETS,ICIMOD,10652,19979.88,-
BEIS,Met Office,2022-06-22,12 INTERNATIONAL,MARKETS,IDEMS INTERNATIONAL COMMUNITY INTEREST CO,468930,4495.58,-
BEIS,Met Office,2022-06-27,12 INTERNATIONAL,MARKETS,IDEMS INTERNATIONAL COMMUNITY INTEREST CO,469250,14043.45,-
BEIS,Met Office,2022-06-29,11 SERVICES,MARKETS,INSTITUTO NACIONAL DE METEREOLOGIA,468675,35624.28,-
BEIS,Met Office,2022-06-08,11 SERVICES,MARKETS,"INTELLOVATIONS, LLC",10671,3403.93,-
BEIS,Met Office,2022-06-28,11 SERVICES,MARKETS,IPSOS (MARKET RESEARCH) LTD,469249,14140,443932151
BEIS,Met Office,2022-06-08,11 SERVICES,MARKETS,IT.COM,10672,4433.03,-
BEIS,Met Office,2022-06-08,07 EQUIPMENT,MARKETS,LARS THRANE A/S,23846,1528.42,DK36042443
BEIS,Met Office,2022-06-22,12 INTERNATIONAL,MARKETS,MACITECHSY SOLUTIONS,469030,153.5,-
BEIS,Met Office,2022-06-22,12 INTERNATIONAL,MARKETS,MACITECHSY SOLUTIONS,468933,640,-
BEIS,Met Office,2022-06-22,12 INTERNATIONAL,MARKETS,MACITECHSY SOLUTIONS,469030,800,-
BEIS,Met Office,2022-06-15,11 SERVICES,MARKETS,MACITECHSY SOLUTIONS,10675,4911.16,-
BEIS,Met Office,2022-06-01,11 SERVICES,MARKETS,MARKET FOCUS CONSULTING LTD,468541,9900,759751578
BEIS,Met Office,2022-06-01,REVENUE,MARKETS,MAX-PLANCK INSTITUT FUR METEOROLOGIE,23879,17846.61,DE129517720
BEIS,Met Office,2022-06-01,REVENUE,MARKETS,MAX-PLANCK INSTITUT FUR METEOROLOGIE,23878,26869.44,DE129517720
BEIS,Met Office,2022-06-15,REVENUE,MARKETS,METEO-FRANCE AGENCE COMPTABLE SEC D2C,23914,9137.53,FR03180060030
BEIS,Met Office,2022-06-15,REVENUE,MARKETS,METEO-FRANCE AGENCE COMPTABLE SEC D2C,23915,10583.28,FR03180060030
BEIS,Met Office,2022-06-13,11 SERVICES,MARKETS,MOMENTUM INCORPORATED,468746,25000,598958541
BEIS,Met Office,2022-06-17,11 SERVICES,MARKETS,National Oceanography Centre,468960,30429.8,GB 338 5487 64
BEIS,Met Office,2022-06-01,11 SERVICES,MARKETS,OSBORNE CLARKE LLP,468535,600,GB138187353
BEIS,Met Office,2022-06-30,11 SERVICES,MARKETS,OSBORNE CLARKE LLP,469351,2070,GB138187353
BEIS,Met Office,2022-06-29,11 SERVICES,MARKETS,OVERSEAS DEVELOPMENT INSTITUTE SALES LTD,469034,3690,250 3150 54
BEIS,Met Office,2022-06-28,11 SERVICES,MARKETS,OVERSEAS DEVELOPMENT INSTITUTE SALES LTD,469033,11070,250 3150 54
BEIS,Met Office,2022-06-30,11 SERVICES,MARKETS,QUESTBACK UK LIMITED,469306,10487.94,GB 382 9785 37
BEIS,Met Office,2022-06-08,12 INTERNATIONAL,MARKETS,REDACTED � PERSONAL DATA,10664,763.91,-
BEIS,Met Office,2022-06-08,12 INTERNATIONAL,MARKETS,REDACTED � PERSONAL DATA,10664,2770.64,-
BEIS,Met Office,2022-06-21,11 SERVICES,MARKETS,RSM,468855,550,890965570
BEIS,Met Office,2022-06-24,11 SERVICES,MARKETS,SCIENCE & TECHNOLOGY FACILITIES COUNCIL,469174,21625,287461957
BEIS,Met Office,2022-06-22,REVENUE,MARKETS,Smhi,23864,19010.59,SE202100069601
BEIS,Met Office,2022-06-30,11 SERVICES,MARKETS,SOFTWIRE TECHNOLOGY LIMITED,469318,9660,752 1253 57
BEIS,Met Office,2022-06-01,REVENUE,MARKETS,SORBONNE UNIVERSITE,23871,8942.45,FR90130023385
BEIS,Met Office,2022-06-01,REVENUE,MARKETS,SORBONNE UNIVERSITE,23873,8977.52,FR90130023385
BEIS,Met Office,2022-06-01,REVENUE,MARKETS,SORBONNE UNIVERSITE,23872,10765.53,FR90130023385
BEIS,Met Office,2022-06-13,11 SERVICES,MARKETS,SPOKE (INTERACTIVE) LTD,468811,700,840156451
BEIS,Met Office,2022-06-23,11 SERVICES,MARKETS,WALNUT UNLIMITED LIMITED,468942,2725,648857968
BEIS,Met Office,2022-06-23,11 SERVICES,MARKETS,WALNUT UNLIMITED LIMITED,468942,3990,648857968
BEIS,Met Office,2022-06-08,11 SERVICES,MARKETS,World Food Programme,10663,34809.48,-
BEIS,Met Office,2022-06-13,11 SERVICES,OFFICE OF THE CEO,CRITICAL EYE (EUROPE) LTD,468793,12500,GB 810 1115 04
BEIS,Met Office,2022-06-06,11 SERVICES,OFFICE OF THE CEO,OSBORNE CLARKE LLP,468534,14000,GB138187353
BEIS,Met Office,2022-06-29,11 SERVICES,OFFICE OF THE CEO,OSBORNE CLARKE LLP,469344,14000,GB138187353
BEIS,Met Office,2022-06-30,13 MISCELLANEOUS,OFFICE OF THE CEO,Royal Meteorological Society,463674,5000,-
BEIS,Met Office,2022-06-10,05 CONSULTANTS,OFFICE OF THE CEO,THE LEGAL DIRECTOR,468762,1200,899 338941
BEIS,Met Office,2022-06-09,13 MISCELLANEOUS,OFFICE OF THE CEO,THOMSON REUTERS (PROFESSIONAL) UK LTD,468671,21000,900548743
BEIS,Met Office,2022-06-14,CYCLESCHEME,OTHER,EDENRED UK (CYCLESCHEME),468831,6303.2,649 503 520
BEIS,Met Office,2022-06-16,11 SERVICES,OTHER,HOGAN LOVELLS INTERNATIONAL LLP,466667,1094,GB123371543
BEIS,Met Office,2022-06-16,11 SERVICES,OTHER,HOGAN LOVELLS INTERNATIONAL LLP,466667,70301.64,GB123371543
BEIS,Met Office,2022-06-17,11 SERVICES,OTHER,HOGAN LOVELLS INTERNATIONAL LLP,468971,149421.7,GB123371543
BEIS,Met Office,2022-06-16,11 SERVICES,OTHER,HOGAN LOVELLS INTERNATIONAL LLP,466667,218000,GB123371543
BEIS,Met Office,2022-06-17,11 SERVICES,OTHER,HOGAN LOVELLS INTERNATIONAL LLP,468970,286933.11,GB123371543
BEIS,Met Office,2022-06-27,TRADE CREDITORS,OTHER,NATWEST COMMERCIAL CARDS DIVISION,469039,167327.99,N/A
BEIS,Met Office,2022-06-01,11 SERVICES,PEOPLE,ACTIVE LEARNING TEAM LTD,468528,1400,-
BEIS,Met Office,2022-06-15,11 SERVICES,PEOPLE,ACTIVE LEARNING TEAM LTD,468810,1400,-
BEIS,Met Office,2022-06-27,11 SERVICES,PEOPLE,ACTIVE LEARNING TEAM LTD,469175,2800,-
BEIS,Met Office,2022-06-08,11 SERVICES,PEOPLE,ADJUST,468660,590,-
BEIS,Met Office,2022-06-28,13 MISCELLANEOUS,PEOPLE,BROADBEAN TECHNOLOGY LTD,469251,843.5,GB184088778
BEIS,Met Office,2022-06-07,13 MISCELLANEOUS,PEOPLE,CALM WATERS COUNSELLING,468545,200,-
BEIS,Met Office,2022-06-07,08 SOFTWARE LICENCES,PEOPLE,CATALYST IT,468606,1215.83,978169262
BEIS,Met Office,2022-06-30,13 MISCELLANEOUS,PEOPLE,Cipd,469325,221,756 202 737.
BEIS,Met Office,2022-06-30,13 MISCELLANEOUS,PEOPLE,Cipd,469244,4626,756 202 737.
BEIS,Met Office,2022-06-23,11 SERVICES,PEOPLE,CIVICA UK LIMITED,469172,2400,391171065
BEIS,Met Office,2022-06-22,11 SERVICES,PEOPLE,CIVICA UK LIMITED,469013,6846,391171065
BEIS,Met Office,2022-06-10,13 MISCELLANEOUS,PEOPLE,EDENRED - CHILDCARE VOUCHERS,468766,1412,649 503 520
BEIS,Met Office,2022-06-10,13 MISCELLANEOUS,PEOPLE,EDENRED - CHILDCARE VOUCHERS,468765,11348,649 503 520
BEIS,Met Office,2022-06-08,13 MISCELLANEOUS,PEOPLE,EDENRED I&M (IRS VOUCHERS),468670,92554.8,649 503 520
BEIS,Met Office,2022-06-24,03 STAFF COSTS T&S,PEOPLE,HCR LTD,469135,2971.88,733 7205 46
BEIS,Met Office,2022-06-24,11 SERVICES,PEOPLE,HCR LTD,469080,6575,733 7205 46
BEIS,Met Office,2022-06-13,11 SERVICES,PEOPLE,HEALTH ASSURED LIMITED,468711,1120,927 5242 17
BEIS,Met Office,2022-06-22,11 SERVICES,PEOPLE,IBEX GALE LIMITED,469100,4725,179526368
BEIS,Met Office,2022-06-08,13 MISCELLANEOUS,PEOPLE,LNRS DATA SERVICES LTD,468641,10736.59,730859520
BEIS,Met Office,2022-06-13,04 CONTRACTORS,PEOPLE,MATRIX SCM LIMITED,468744,147899.99,249 5734 68
BEIS,Met Office,2022-06-30,04 CONTRACTORS,PEOPLE,MATRIX SCM LIMITED,468963,184683.21,249 5734 68
BEIS,Met Office,2022-06-30,04 CONTRACTORS,PEOPLE,MATRIX SCM LIMITED,469171,198817.42,249 5734 68
BEIS,Met Office,2022-06-09,04 CONTRACTORS,PEOPLE,MATRIX SCM LIMITED,468601,248896.82,249 5734 68
BEIS,Met Office,2022-06-29,11 SERVICES,PEOPLE,MYCSP LTD,469322,124.96,128754393
BEIS,Met Office,2022-06-13,08 SOFTWARE LICENCES,PEOPLE,POWTOON LIMITED,468814,6040,GB 202 866 029
BEIS,Met Office,2022-06-09,11 SERVICES,PEOPLE,PTR ASSOCIATES LTD,468566,4350,532192956
BEIS,Met Office,2022-06-13,11 SERVICES,PEOPLE,REDACTED � PERSONAL DATA,466513,-6298,143043312
BEIS,Met Office,2022-06-13,11 SERVICES,PEOPLE,REDACTED � PERSONAL DATA,468770,1834.5,143043312
BEIS,Met Office,2022-06-13,11 SERVICES,PEOPLE,REDACTED � PERSONAL DATA,468767,1972.5,143043312
BEIS,Met Office,2022-06-13,11 SERVICES,PEOPLE,REDACTED � PERSONAL DATA,468768,4048.74,143043312
BEIS,Met Office,2022-06-13,11 SERVICES,PEOPLE,RIVER TRAINING AND HR,468741,800,-
BEIS,Met Office,2022-06-16,11 SERVICES,PEOPLE,SKILLTEC LIMITED,468932,4310,909833105
BEIS,Met Office,2022-06-06,11 SERVICES,PEOPLE,SOURCE COACHING CONSULTANCY,468569,1340,170422048
BEIS,Met Office,2022-06-22,11 SERVICES,PEOPLE,SPOCE,468640,6646.5,619 8641 07
BEIS,Met Office,2022-06-09,11 SERVICES,PEOPLE,SWANTECH LOGISTICS LTD,468613,900,769332401
BEIS,Met Office,2022-06-01,13 MISCELLANEOUS,PEOPLE,THE DISRUPTIVE HR AGENCY LTD,468548,1500,226276996
BEIS,Met Office,2022-06-07,11 SERVICES,PEOPLE,THE STRENGTHS PEOPLE LTD,468455,155.2,206868488
BEIS,Met Office,2022-06-27,11 SERVICES,PEOPLE,THE STRENGTHS PEOPLE LTD,469238,1000,206868488
BEIS,Met Office,2022-06-27,11 SERVICES,PEOPLE,THE STRENGTHS PEOPLE LTD,469238,1000,206868488
BEIS,Met Office,2022-06-07,11 SERVICES,PEOPLE,THE STRENGTHS PEOPLE LTD,468455,2000,206868488
BEIS,Met Office,2022-06-13,11 SERVICES,PEOPLE,THE STRENGTHS PEOPLE LTD,468792,3106.82,206868488
BEIS,Met Office,2022-06-24,11 SERVICES,PEOPLE,TP HEALTH LTD,469038,2006,883064608
BEIS,Met Office,2022-06-08,11 SERVICES,PROGRAMMES,BAE SYSTEMS APPLIED INTELLIGENCE LIMITED,467889,1308.38,GB641407169
BEIS,Met Office,2022-06-08,11 SERVICES,PROGRAMMES,BAE SYSTEMS APPLIED INTELLIGENCE LIMITED,467893,2814,GB641407169
BEIS,Met Office,2022-06-20,11 SERVICES,PROGRAMMES,BAE SYSTEMS APPLIED INTELLIGENCE LIMITED,468938,6975,GB641407169
BEIS,Met Office,2022-06-20,11 SERVICES,PROGRAMMES,BAE SYSTEMS APPLIED INTELLIGENCE LIMITED,468938,8656,GB641407169
BEIS,Met Office,2022-06-20,11 SERVICES,PROGRAMMES,BAE SYSTEMS APPLIED INTELLIGENCE LIMITED,468938,11220,GB641407169
BEIS,Met Office,2022-06-20,11 SERVICES,PROGRAMMES,BAE SYSTEMS APPLIED INTELLIGENCE LIMITED,468938,12194,GB641407169
BEIS,Met Office,2022-06-20,11 SERVICES,PROGRAMMES,BAE SYSTEMS APPLIED INTELLIGENCE LIMITED,468938,15946,GB641407169
BEIS,Met Office,2022-06-08,11 SERVICES,PROGRAMMES,BAE SYSTEMS APPLIED INTELLIGENCE LIMITED,467893,16884,GB641407169
BEIS,Met Office,2022-06-20,11 SERVICES,PROGRAMMES,BAE SYSTEMS APPLIED INTELLIGENCE LIMITED,468938,16884,GB641407169
BEIS,Met Office,2022-06-20,11 SERVICES,PROGRAMMES,BAE SYSTEMS APPLIED INTELLIGENCE LIMITED,468938,16884.58,GB641407169
BEIS,Met Office,2022-06-08,11 SERVICES,PROGRAMMES,BAE SYSTEMS APPLIED INTELLIGENCE LIMITED,467889,17590.37,GB641407169
BEIS,Met Office,2022-06-20,11 SERVICES,PROGRAMMES,BAE SYSTEMS APPLIED INTELLIGENCE LIMITED,468938,17822,GB641407169
BEIS,Met Office,2022-06-20,11 SERVICES,PROGRAMMES,BAE SYSTEMS APPLIED INTELLIGENCE LIMITED,468938,19552.94,GB641407169
BEIS,Met Office,2022-06-20,11 SERVICES,PROGRAMMES,BAE SYSTEMS APPLIED INTELLIGENCE LIMITED,468938,19771,GB641407169
BEIS,Met Office,2022-06-20,11 SERVICES,PROGRAMMES,BAE SYSTEMS APPLIED INTELLIGENCE LIMITED,468938,20934,GB641407169
BEIS,Met Office,2022-06-20,11 SERVICES,PROGRAMMES,BAE SYSTEMS APPLIED INTELLIGENCE LIMITED,468938,21224.75,GB641407169
BEIS,Met Office,2022-06-15,11 SERVICES,PROGRAMMES,BJSS LIMITED,468838,87576.66,613295452
BEIS,Met Office,2022-06-07,11 SERVICES,PROGRAMMES,DESIGNAMITE LTD,468564,1310,817819989
BEIS,Met Office,2022-06-28,11 SERVICES,PROGRAMMES,FCDO,469225,-3.99,888813560
BEIS,Met Office,2022-06-17,11 SERVICES,PROGRAMMES,FCDO,468894,911.08,888813560
BEIS,Met Office,2022-06-07,11 SERVICES,PROGRAMMES,FCDO,468542,2171.94,888813560
BEIS,Met Office,2022-06-08,11 SERVICES,PROGRAMMES,FCDO,468539,2192.2,888813560
BEIS,Met Office,2022-06-27,11 SERVICES,PROGRAMMES,FCDO,469224,4951.46,888813560
BEIS,Met Office,2022-06-08,11 SERVICES,PROGRAMMES,FUNDACAO ARTHUR BERNARDES - FUNARBE,468515,51656.5,-
BEIS,Met Office,2022-06-08,11 SERVICES,PROGRAMMES,FUNDACAO ARTHUR BERNARDES - FUNARBE,468516,52896.21,-
BEIS,Met Office,2022-06-15,11 SERVICES,PROGRAMMES,FUNDACAO ARTHUR BERNARDES - FUNARBE,468892,166918.19,-
BEIS,Met Office,2022-06-20,11 SERVICES,PROGRAMMES,GAMMA TELECOM LTD,468847,38.14,823820344
BEIS,Met Office,2022-06-20,11 SERVICES,PROGRAMMES,GAMMA TELECOM LTD,468847,54,823820344
BEIS,Met Office,2022-06-20,11 SERVICES,PROGRAMMES,GAMMA TELECOM LTD,468847,62.2,823820344
BEIS,Met Office,2022-06-20,11 SERVICES,PROGRAMMES,GAMMA TELECOM LTD,468847,4488.75,823820344
BEIS,Met Office,2022-06-10,11 SERVICES,PROGRAMMES,GLOBAL ACTION PLAN,468772,32619,GB 625 994 009
BEIS,Met Office,2022-06-17,11 SERVICES,PROGRAMMES,HOGAN LOVELLS INTERNATIONAL LLP,468969,14257.22,GB123371543
BEIS,Met Office,2022-06-01,11 SERVICES,PROGRAMMES,"K F LEWIN CONSULTING, LLC",10637,10735.7,-
BEIS,Met Office,2022-06-22,11 SERVICES,PROGRAMMES,Red Cross Red Crescent Climate Centre,468350,25039.7,N/A
BEIS,Met Office,2022-06-29,11 SERVICES,PROGRAMMES,REDACTED � PERSONAL DATA,23679,24886.9,112591322
BEIS,Met Office,2022-06-09,11 SERVICES,PROGRAMMES,ROWE IT LTD,468665,15375,924964394
BEIS,Met Office,2022-06-06,11 SERVICES,PROGRAMMES,ROWE IT LTD,468607,107716.25,924964394
BEIS,Met Office,2022-06-09,11 SERVICES,PROGRAMMES,ROWE IT LTD,468620,197930.24,924964394
BEIS,Met Office,2022-06-23,11 SERVICES,PROGRAMMES,SCIENCE & TECHNOLOGY FACILITIES COUNCIL,468167,12500,287461957
BEIS,Met Office,2022-06-23,11 SERVICES,PROGRAMMES,SEER 365 LTD,468568,15000,GB 359 986910
BEIS,Met Office,2022-06-30,11 SERVICES,PROGRAMMES,THE NATIONAL LOTTERY COMMUNITY FUND,469239,9506.72,899 3679 32
BEIS,Met Office,2022-06-22,11 SERVICES,PROGRAMMES,UCAR INCOMING PAYMENTS,10656,21305.48,-
BEIS,Met Office,2022-06-08,11 SERVICES,PROGRAMMES,UK ATOMIC ENERGY AUTHORITY,468658,5000,GB570101391
BEIS,Met Office,2022-06-08,11 SERVICES,PROGRAMMES,UK ATOMIC ENERGY AUTHORITY,468652,7500,GB570101391
BEIS,Met Office,2022-06-08,11 SERVICES,PROGRAMMES,UK ATOMIC ENERGY AUTHORITY,468653,11250,GB570101391
BEIS,Met Office,2022-06-08,11 SERVICES,PROGRAMMES,UK ATOMIC ENERGY AUTHORITY,468656,11250,GB570101391
BEIS,Met Office,2022-06-08,11 SERVICES,PROGRAMMES,UK ATOMIC ENERGY AUTHORITY,468651,15000,GB570101391
BEIS,Met Office,2022-06-08,11 SERVICES,PROGRAMMES,UK ATOMIC ENERGY AUTHORITY,468654,18750,GB570101391
BEIS,Met Office,2022-06-08,11 SERVICES,PROGRAMMES,UK ATOMIC ENERGY AUTHORITY,468655,30000,GB570101391
BEIS,Met Office,2022-06-08,11 SERVICES,PROGRAMMES,UK ATOMIC ENERGY AUTHORITY,468657,620775.68,GB570101391
BEIS,Met Office,2022-06-07,11 SERVICES,PROGRAMMES,UK CENTRE FOR ECOLOGY & HYDROLOGY (UKCEH),466502,37723.4,336940192
BEIS,Met Office,2022-06-07,11 SERVICES,PROGRAMMES,UK CENTRE FOR ECOLOGY & HYDROLOGY (UKCEH),466572,37723.4,336940192
BEIS,Met Office,2022-06-29,11 SERVICES,PROGRAMMES,UNIVERSITATBERN,467017,15120.71,280255
BEIS,Met Office,2022-06-07,11 SERVICES,PROGRAMMES,University of Edinburgh,468482,117367.27,592950700
BEIS,Met Office,2022-06-23,11 SERVICES,PROGRAMMES,University Of Exeter,469142,-98916,142047795
BEIS,Met Office,2022-06-13,11 SERVICES,PROGRAMMES,University Of Exeter,467061,-500,142047795
BEIS,Met Office,2022-06-13,11 SERVICES,PROGRAMMES,University Of Exeter,461418,500,142047795
BEIS,Met Office,2022-06-13,11 SERVICES,PROGRAMMES,University Of Exeter,468790,15600,142047795
BEIS,Met Office,2022-06-23,11 SERVICES,PROGRAMMES,University Of Exeter,468935,98916,142047795
BEIS,Met Office,2022-06-13,11 SERVICES,PROGRAMMES,University Of Exeter,468789,117012,142047795
BEIS,Met Office,2022-06-10,11 SERVICES,SCIENCE,PARTNERS FOR LEADERSHIP,468673,9000,402266435
BEIS,Met Office,2022-06-01,11 SERVICES,SCIENCE,RIUVARBEL S.L,23811,8147.1,-
BEIS,Met Office,2022-06-24,11 SERVICES,SCIENCE,SCIENCE & TECHNOLOGY FACILITIES COUNCIL,469174,26000,287461957
BEIS,Met Office,2022-06-21,11 SERVICES,SCIENCE,THREE BLIND MICE LTD,468981,3000,GB 645 434 730
BEIS,Met Office,2022-06-08,13 MISCELLANEOUS,SCIENCE,University Of Reading,468666,-333.34,200012659
BEIS,Met Office,2022-06-08,13 MISCELLANEOUS,SCIENCE,University Of Reading,468667,-333.33,200012659
BEIS,Met Office,2022-06-08,13 MISCELLANEOUS,SCIENCE,University Of Reading,468668,-333.33,200012659
BEIS,Met Office,2022-06-08,13 MISCELLANEOUS,SCIENCE,University Of Reading,468621,250,200012659
BEIS,Met Office,2022-06-08,13 MISCELLANEOUS,SCIENCE,University Of Reading,463981,333.33,200012659
BEIS,Met Office,2022-06-08,13 MISCELLANEOUS,SCIENCE,University Of Reading,463995,333.33,200012659
BEIS,Met Office,2022-06-01,13 MISCELLANEOUS,SCIENCE,University Of Reading,468549,333.33,200012659
BEIS,Met Office,2022-06-07,13 MISCELLANEOUS,SCIENCE,University Of Reading,468551,333.33,200012659
BEIS,Met Office,2022-06-08,13 MISCELLANEOUS,SCIENCE,University Of Reading,463979,333.34,200012659
BEIS,Met Office,2022-06-30,11 SERVICES,SCIENCE,University Of Reading,469289,4975,200012659
BEIS,Met Office,2022-06-23,04 CONTRACTORS,SERVICES,AFBI,469035,50,252677738
BEIS,Met Office,2022-06-14,03 STAFF COSTS T&S,SERVICES,AIRPORT CAR RENTALS LTD,468900,320,-
BEIS,Met Office,2022-06-21,11 SERVICES,SERVICES,APPLIED SATELLITE TECHNOLOGY SYSTEMS LTD,469022,34.64,720108683
BEIS,Met Office,2022-06-21,11 SERVICES,SERVICES,APPLIED SATELLITE TECHNOLOGY SYSTEMS LTD,469020,69.28,720108683
BEIS,Met Office,2022-06-21,11 SERVICES,SERVICES,APPLIED SATELLITE TECHNOLOGY SYSTEMS LTD,469021,87.84,720108683
BEIS,Met Office,2022-06-21,11 SERVICES,SERVICES,APPLIED SATELLITE TECHNOLOGY SYSTEMS LTD,469018,285.18,720108683
BEIS,Met Office,2022-06-23,11 SERVICES,SERVICES,APPLIED SATELLITE TECHNOLOGY SYSTEMS LTD,469016,10906.67,720108683
BEIS,Met Office,2022-06-28,13 MISCELLANEOUS,SERVICES,ARTHUR J. GALLAGHER INSURANCE BROKERS LIMITED,469227,14784,GB484746209
BEIS,Met Office,2022-06-01,13 MISCELLANEOUS,SERVICES,AUTOMATED DOCUMENT SERVICES LTD,468567,9603.4,105353449
BEIS,Met Office,2022-06-13,11 SERVICES,SERVICES,Boc Ltd,468248,-114.23,226556555
BEIS,Met Office,2022-06-21,11 SERVICES,SERVICES,Boc Ltd,467695,13701.55,226556555
BEIS,Met Office,2022-06-13,11 SERVICES,SERVICES,Boc Ltd,468769,14323.13,226556555
BEIS,Met Office,2022-06-22,STOCK,SERVICES,Campbell Scientific Ltd,468973,0,428453933
BEIS,Met Office,2022-06-22,STOCK,SERVICES,Campbell Scientific Ltd,468983,0,428453933
BEIS,Met Office,2022-06-22,STOCK,SERVICES,Campbell Scientific Ltd,468983,0,428453933
BEIS,Met Office,2022-06-22,STOCK,SERVICES,Campbell Scientific Ltd,468983,0,428453933
BEIS,Met Office,2022-06-22,11 SERVICES,SERVICES,Campbell Scientific Ltd,468983,65,428453933
BEIS,Met Office,2022-06-22,11 SERVICES,SERVICES,Campbell Scientific Ltd,468973,150,428453933
BEIS,Met Office,2022-06-22,TRADE CREDITORS,SERVICES,Campbell Scientific Ltd,468983,158.4,428453933
BEIS,Met Office,2022-06-22,TRADE CREDITORS,SERVICES,Campbell Scientific Ltd,468983,1836,428453933
BEIS,Met Office,2022-06-22,TRADE CREDITORS,SERVICES,Campbell Scientific Ltd,468983,2106,428453933
BEIS,Met Office,2022-06-22,TRADE CREDITORS,SERVICES,Campbell Scientific Ltd,468973,11574,428453933
BEIS,Met Office,2022-06-13,03 STAFF COSTS T&S,SERVICES,CARTUS LTD,468729,110,768489458
BEIS,Met Office,2022-06-13,03 STAFF COSTS T&S,SERVICES,CARTUS LTD,468730,110,768489458
BEIS,Met Office,2022-06-13,03 STAFF COSTS T&S,SERVICES,CARTUS LTD,468731,110,768489458
BEIS,Met Office,2022-06-13,03 STAFF COSTS T&S,SERVICES,CARTUS LTD,468732,110,768489458
BEIS,Met Office,2022-06-13,03 STAFF COSTS T&S,SERVICES,CARTUS LTD,468733,110,768489458
BEIS,Met Office,2022-06-13,03 STAFF COSTS T&S,SERVICES,CARTUS LTD,468735,168,768489458
BEIS,Met Office,2022-06-13,03 STAFF COSTS T&S,SERVICES,CARTUS LTD,468734,8200,768489458
BEIS,Met Office,2022-06-07,03 STAFF COSTS T&S,SERVICES,CHARLIE'S TRAVEL LTD,468626,62.5,783848277
BEIS,Met Office,2022-06-06,03 STAFF COSTS T&S,SERVICES,CHARLIE'S TRAVEL LTD,468596,925.65,783848277
BEIS,Met Office,2022-06-13,11 SERVICES,SERVICES,CLOUDREACH EUROPE LIMITED,468788,7300,978187168
BEIS,Met Office,2022-06-23,08 SOFTWARE LICENCES,SERVICES,COGNIZANT WORLDWIDE LIMITED,468852,9977.25,123382928
BEIS,Met Office,2022-06-23,08 SOFTWARE LICENCES,SERVICES,COGNIZANT WORLDWIDE LIMITED,468853,9977.25,123382928
BEIS,Met Office,2022-06-23,08 SOFTWARE LICENCES,SERVICES,COGNIZANT WORLDWIDE LIMITED,468854,9977.25,123382928
BEIS,Met Office,2022-06-08,13 MISCELLANEOUS,SERVICES,COLLECTE LOCALISATION SATELLITES (C.L.S.),23838,435.97,FR95338034390
BEIS,Met Office,2022-06-08,11 SERVICES,SERVICES,COLLECTE LOCALISATION SATELLITES (C.L.S.),23837,5519.49,FR95338034390
BEIS,Met Office,2022-06-08,11 SERVICES,SERVICES,COLLECTE LOCALISATION SATELLITES (C.L.S.),23836,11159.64,FR95338034390
BEIS,Met Office,2022-06-20,13 MISCELLANEOUS,SERVICES,DBS FINANCE RECEIPTS CTS,469004,245,888805068
BEIS,Met Office,2022-06-22,03 STAFF COSTS T&S,SERVICES,DBS FINANCE RECEIPTS CTS,468476,1636,888805068
BEIS,Met Office,2022-06-01,PLANT AND EQUIPMENT,SERVICES,EXSIL,23812,1632.79,-
BEIS,Met Office,2022-06-01,PLANT AND EQUIPMENT,SERVICES,EXSIL,23812,2572.06,-
BEIS,Met Office,2022-06-01,PLANT AND EQUIPMENT,SERVICES,EXSIL,23812,7565.52,-
BEIS,Met Office,2022-06-29,03 STAFF COSTS T&S,SERVICES,FALKLAND ISLAND COMPANY LTD,469292,700,N/A
BEIS,Met Office,2022-06-29,03 STAFF COSTS T&S,SERVICES,FALKLAND ISLAND COMPANY LTD,469293,700,N/A
BEIS,Met Office,2022-06-29,03 STAFF COSTS T&S,SERVICES,FALKLAND ISLAND COMPANY LTD,469294,700,N/A
BEIS,Met Office,2022-06-29,03 STAFF COSTS T&S,SERVICES,FALKLAND ISLAND COMPANY LTD,469295,700,N/A
BEIS,Met Office,2022-06-29,03 STAFF COSTS T&S,SERVICES,FALKLAND ISLAND COMPANY LTD,469296,700,N/A
BEIS,Met Office,2022-06-29,03 STAFF COSTS T&S,SERVICES,FALKLAND ISLAND COMPANY LTD,469297,700,N/A
BEIS,Met Office,2022-06-29,03 STAFF COSTS T&S,SERVICES,FALKLAND ISLAND COMPANY LTD,469298,700,N/A
BEIS,Met Office,2022-06-29,03 STAFF COSTS T&S,SERVICES,FALKLAND ISLAND COMPANY LTD,469299,700,N/A
BEIS,Met Office,2022-06-29,03 STAFF COSTS T&S,SERVICES,FALKLAND ISLAND COMPANY LTD,469300,700,N/A
BEIS,Met Office,2022-06-01,10 EQUIPMENT MAINTENANCE,SERVICES,Finnish Meteorological Institute,23847,2356.6,FI02446647
BEIS,Met Office,2022-06-23,11 SERVICES,SERVICES,Goldisc Limited,469031,175,861294416
BEIS,Met Office,2022-06-23,10 EQUIPMENT MAINTENANCE,SERVICES,Goldisc Limited,469031,300,861294416
BEIS,Met Office,2022-06-23,10 EQUIPMENT MAINTENANCE,SERVICES,Goldisc Limited,469031,1700,861294416
BEIS,Met Office,2022-06-23,10 EQUIPMENT MAINTENANCE,SERVICES,Goldisc Limited,469031,1700,861294416
BEIS,Met Office,2022-06-23,10 EQUIPMENT MAINTENANCE,SERVICES,Goldisc Limited,469031,1700,861294416
BEIS,Met Office,2022-06-23,10 EQUIPMENT MAINTENANCE,SERVICES,Goldisc Limited,469031,1700,861294416
BEIS,Met Office,2022-06-23,10 EQUIPMENT MAINTENANCE,SERVICES,Goldisc Limited,469031,1700,861294416
BEIS,Met Office,2022-06-23,10 EQUIPMENT MAINTENANCE,SERVICES,Goldisc Limited,469031,1700,861294416
BEIS,Met Office,2022-06-30,11 SERVICES,SERVICES,HITACHI CAPITAL VEHICLE SOLUTIONS,469364,100,GB 823 8248 22
BEIS,Met Office,2022-06-13,INFORMATION TECHNOLOGY,SERVICES,INMARSAT SOLUTIONS (CANADA) INC,468615,1672.44,766144223
BEIS,Met Office,2022-06-28,11 SERVICES,SERVICES,IPSOS (MARKET RESEARCH) LTD,469249,1060,443932151
BEIS,Met Office,2022-06-23,11 SERVICES,SERVICES,Landmark Information Group Ltd,469036,-3800,634509735
BEIS,Met Office,2022-06-01,11 SERVICES,SERVICES,Landmark Information Group Ltd,468456,-495,634509735
BEIS,Met Office,2022-06-23,11 SERVICES,SERVICES,Landmark Information Group Ltd,468602,170520,634509735
BEIS,Met Office,2022-06-01,11 SERVICES,SERVICES,Landmark Information Group Ltd,467133,196146.9,634509735
BEIS,Met Office,2022-06-08,07 EQUIPMENT,SERVICES,LANKHORST EURONETE PORTUGAL S.A.,23813,26764.23,PT500347670
BEIS,Met Office,2022-06-17,06 ACCOMMODATION,SERVICES,LINCOLN POLYTHENE / HOBSON HOLDINGS,468964,270,267249279
BEIS,Met Office,2022-06-27,07 EQUIPMENT,SERVICES,M C ENGINEERING SERVICES,469178,179.08,813172066
BEIS,Met Office,2022-06-01,11 SERVICES,SERVICES,METOCEAN TELEMATICS LTD,10641,301.44,-
BEIS,Met Office,2022-06-15,11 SERVICES,SERVICES,NSSL GLOBAL LTD,10654,54.88,725151948
BEIS,Met Office,2022-06-15,11 SERVICES,SERVICES,NSSL GLOBAL LTD,10653,70.56,725151948
BEIS,Met Office,2022-06-22,PLANT AND EQUIPMENT,SERVICES,QROMETRIC LIMITED,469103,875,203980028
BEIS,Met Office,2022-06-22,PLANT AND EQUIPMENT,SERVICES,QROMETRIC LIMITED,469103,2505,203980028
BEIS,Met Office,2022-06-22,PLANT AND EQUIPMENT,SERVICES,QROMETRIC LIMITED,469103,3520,203980028
BEIS,Met Office,2022-06-22,PLANT AND EQUIPMENT,SERVICES,QROMETRIC LIMITED,469103,63810,203980028
BEIS,Met Office,2022-06-23,07 EQUIPMENT,SERVICES,QUASAR MICROWAVE TECHNOLOGY LTD,469102,-1205.63,209385203
BEIS,Met Office,2022-06-23,07 EQUIPMENT,SERVICES,QUASAR MICROWAVE TECHNOLOGY LTD,469102,-1195.63,209385203
BEIS,Met Office,2022-06-23,07 EQUIPMENT,SERVICES,QUASAR MICROWAVE TECHNOLOGY LTD,468205,1195.63,209385203
BEIS,Met Office,2022-06-23,07 EQUIPMENT,SERVICES,QUASAR MICROWAVE TECHNOLOGY LTD,468205,1205.63,209385203
BEIS,Met Office,2022-06-22,10 EQUIPMENT MAINTENANCE,SERVICES,RAISE TELECOMS LTD,469125,20579,166016521
BEIS,Met Office,2022-06-17,10 EQUIPMENT MAINTENANCE,SERVICES,RAISE TELECOMS LTD,468896,25844,166016521
BEIS,Met Office,2022-06-08,10 EQUIPMENT MAINTENANCE,SERVICES,RAYMETRICS S.A. (GREEK ACCOUNT),23834,799.56,EL999641589
BEIS,Met Office,2022-06-08,10 EQUIPMENT MAINTENANCE,SERVICES,RAYMETRICS S.A. (GREEK ACCOUNT),23833,16285.78,EL999641589
BEIS,Met Office,2022-06-07,11 SERVICES,SERVICES,REDACTED � PERSONAL DATA,468614,470.4,262883631
BEIS,Met Office,2022-06-23,COMPUTER SOFTWARE,SERVICES,RIGNET UK LTD,468029,7800,875299075
BEIS,Met Office,2022-06-08,13 MISCELLANEOUS,SERVICES,Royal Meteorological Society,468465,70.4,-
BEIS,Met Office,2022-06-08,13 MISCELLANEOUS,SERVICES,Royal Meteorological Society,468662,162.8,-
BEIS,Met Office,2022-06-15,11 SERVICES,SERVICES,Skyview Systems Ltd,468705,15,594519109
BEIS,Met Office,2022-06-15,07 EQUIPMENT,SERVICES,Skyview Systems Ltd,468705,120,594519109
BEIS,Met Office,2022-06-07,11 SERVICES,SERVICES,SOFTWIRE TECHNOLOGY LIMITED,468642,4200,752 1253 57
BEIS,Met Office,2022-06-15,13 MISCELLANEOUS,SERVICES,SPRINGER CUSTOMER SERVICE CENTER GMBH,23875,8600.74,209719094
BEIS,Met Office,2022-06-15,07 EQUIPMENT,SERVICES,SWALE TECHNOLOGIES LTD,10646,221276.98,530846451
BEIS,Met Office,2022-06-22,07 EQUIPMENT,SERVICES,SWALE TECHNOLOGIES LTD,10691,326871.86,530846451
BEIS,Met Office,2022-06-29,07 EQUIPMENT,SERVICES,TRUE NORTH TECHNOLOGIES,10632,94.07,-
BEIS,Met Office,2022-06-29,07 EQUIPMENT,SERVICES,TRUE NORTH TECHNOLOGIES,10632,4852.69,-
BEIS,Met Office,2022-06-21,STOCK,SERVICES,TWISTLINK LTD,468771,0,459906989
BEIS,Met Office,2022-06-21,STOCK,SERVICES,TWISTLINK LTD,468771,0,459906989
BEIS,Met Office,2022-06-21,11 SERVICES,SERVICES,TWISTLINK LTD,468771,10,459906989
BEIS,Met Office,2022-06-21,TRADE CREDITORS,SERVICES,TWISTLINK LTD,468771,179.31,459906989
BEIS,Met Office,2022-06-21,TRADE CREDITORS,SERVICES,TWISTLINK LTD,468771,1330,459906989
BEIS,Met Office,2022-06-15,STOCK,SERVICES,VAISALA LTD,23852,0,336100011
BEIS,Met Office,2022-06-15,TRADE CREDITORS,SERVICES,VAISALA LTD,23852,840.8,336100011
BEIS,Met Office,2022-06-15,10 EQUIPMENT MAINTENANCE,SERVICES,VAISALA LTD,23854,1536,336100011
BEIS,Met Office,2022-06-29,07 EQUIPMENT,SERVICES,Vaisala Oyj,23830,2608.75,FI01244162
BEIS,Met Office,2022-06-29,07 EQUIPMENT,SERVICES,Vaisala Oyj,23831,2608.75,FI01244162
BEIS,Met Office,2022-06-29,07 EQUIPMENT,SERVICES,Vaisala Oyj,23832,8116.13,FI01244162
BEIS,Met Office,2022-06-29,07 EQUIPMENT,SERVICES,Vaisala Oyj,23830,10869.81,FI01244162
BEIS,Met Office,2022-06-29,07 EQUIPMENT,SERVICES,Vaisala Oyj,23831,10869.81,FI01244162
BEIS,Met Office,2022-06-15,10 EQUIPMENT MAINTENANCE,SERVICES,Vaisala Oyj,23820,23422.91,FI01244162
BEIS,Met Office,2022-06-29,07 EQUIPMENT,SERVICES,Vaisala Oyj,23832,33817.19,FI01244162
BEIS,Met Office,2022-06-08,11 SERVICES,SERVICES,YOUNG CALIBRATION LIMITED,468650,15,673900720
BEIS,Met Office,2022-06-08,10 EQUIPMENT MAINTENANCE,SERVICES,YOUNG CALIBRATION LIMITED,468650,1100,673900720
BEIS,Met Office,2022-06-01,08 SOFTWARE LICENCES,TECHNOLOGY AND CIO,AIT PARNERSHIP GROUP LTD,468514,13749.99,GB860205553
BEIS,Met Office,2022-06-09,11 SERVICES,TECHNOLOGY AND CIO,AKAMAI TECHNOLOGIES LTD,468616,20,745091237
BEIS,Met Office,2022-06-29,11 SERVICES,TECHNOLOGY AND CIO,AMAZON WEB SERVICES INC.,10688,-939.29,N/A
BEIS,Met Office,2022-06-01,11 SERVICES,TECHNOLOGY AND CIO,AMAZON WEB SERVICES INC.,10638,714.95,N/A
BEIS,Met Office,2022-06-29,11 SERVICES,TECHNOLOGY AND CIO,AMAZON WEB SERVICES INC.,10669,796.54,N/A
BEIS,Met Office,2022-06-01,11 SERVICES,TECHNOLOGY AND CIO,AMAZON WEB SERVICES INC.,10640,17697.36,N/A
BEIS,Met Office,2022-06-01,11 SERVICES,TECHNOLOGY AND CIO,AMAZON WEB SERVICES INC.,10639,192745.73,N/A
BEIS,Met Office,2022-06-29,11 SERVICES,TECHNOLOGY AND CIO,AMAZON WEB SERVICES INC.,10668,198376.09,N/A
BEIS,Met Office,2022-06-27,11 SERVICES,TECHNOLOGY AND CIO,BAE SYSTEMS APPLIED INTELLIGENCE LIMITED,469176,-9197,GB641407169
BEIS,Met Office,2022-06-24,11 SERVICES,TECHNOLOGY AND CIO,BAE SYSTEMS APPLIED INTELLIGENCE LIMITED,468540,-1082,GB641407169
BEIS,Met Office,2022-06-13,11 SERVICES,TECHNOLOGY AND CIO,BAE SYSTEMS APPLIED INTELLIGENCE LIMITED,466907,65.59,GB641407169
BEIS,Met Office,2022-06-13,11 SERVICES,TECHNOLOGY AND CIO,BAE SYSTEMS APPLIED INTELLIGENCE LIMITED,466805,531.4,GB641407169
BEIS,Met Office,2022-06-30,11 SERVICES,TECHNOLOGY AND CIO,BAE SYSTEMS APPLIED INTELLIGENCE LIMITED,469277,660,GB641407169
BEIS,Met Office,2022-06-13,11 SERVICES,TECHNOLOGY AND CIO,BAE SYSTEMS APPLIED INTELLIGENCE LIMITED,466724,1172.5,GB641407169
BEIS,Met Office,2022-06-01,11 SERVICES,TECHNOLOGY AND CIO,BAE SYSTEMS APPLIED INTELLIGENCE LIMITED,468463,1744.5,GB641407169
BEIS,Met Office,2022-06-27,11 SERVICES,TECHNOLOGY AND CIO,BAE SYSTEMS APPLIED INTELLIGENCE LIMITED,468492,2579.5,GB641407169
BEIS,Met Office,2022-06-01,11 SERVICES,TECHNOLOGY AND CIO,BAE SYSTEMS APPLIED INTELLIGENCE LIMITED,468491,2705,GB641407169
BEIS,Met Office,2022-06-27,11 SERVICES,TECHNOLOGY AND CIO,BAE SYSTEMS APPLIED INTELLIGENCE LIMITED,469177,3246,GB641407169
BEIS,Met Office,2022-06-30,11 SERVICES,TECHNOLOGY AND CIO,BAE SYSTEMS APPLIED INTELLIGENCE LIMITED,468531,3283,GB641407169
BEIS,Met Office,2022-06-01,11 SERVICES,TECHNOLOGY AND CIO,BAE SYSTEMS APPLIED INTELLIGENCE LIMITED,468493,4050,GB641407169
BEIS,Met Office,2022-06-13,11 SERVICES,TECHNOLOGY AND CIO,BAE SYSTEMS APPLIED INTELLIGENCE LIMITED,466723,4500,GB641407169
BEIS,Met Office,2022-06-01,11 SERVICES,TECHNOLOGY AND CIO,BAE SYSTEMS APPLIED INTELLIGENCE LIMITED,468461,4500,GB641407169
BEIS,Met Office,2022-06-13,11 SERVICES,TECHNOLOGY AND CIO,BAE SYSTEMS APPLIED INTELLIGENCE LIMITED,466805,4879,GB641407169
BEIS,Met Office,2022-06-15,11 SERVICES,TECHNOLOGY AND CIO,BAE SYSTEMS APPLIED INTELLIGENCE LIMITED,468798,4942.75,GB641407169
BEIS,Met Office,2022-06-01,11 SERVICES,TECHNOLOGY AND CIO,BAE SYSTEMS APPLIED INTELLIGENCE LIMITED,468471,4950,GB641407169
BEIS,Met Office,2022-06-13,11 SERVICES,TECHNOLOGY AND CIO,BAE SYSTEMS APPLIED INTELLIGENCE LIMITED,464822,5280,GB641407169
BEIS,Met Office,2022-06-24,11 SERVICES,TECHNOLOGY AND CIO,BAE SYSTEMS APPLIED INTELLIGENCE LIMITED,466804,5410.4,GB641407169
BEIS,Met Office,2022-06-14,11 SERVICES,TECHNOLOGY AND CIO,BAE SYSTEMS APPLIED INTELLIGENCE LIMITED,468806,5850,GB641407169
BEIS,Met Office,2022-06-01,11 SERVICES,TECHNOLOGY AND CIO,BAE SYSTEMS APPLIED INTELLIGENCE LIMITED,468458,5951,GB641407169
BEIS,Met Office,2022-06-14,11 SERVICES,TECHNOLOGY AND CIO,BAE SYSTEMS APPLIED INTELLIGENCE LIMITED,468805,6448.75,GB641407169
BEIS,Met Office,2022-06-13,11 SERVICES,TECHNOLOGY AND CIO,BAE SYSTEMS APPLIED INTELLIGENCE LIMITED,466907,6494.04,GB641407169
BEIS,Met Office,2022-06-01,11 SERVICES,TECHNOLOGY AND CIO,BAE SYSTEMS APPLIED INTELLIGENCE LIMITED,468459,6600,GB641407169
BEIS,Met Office,2022-06-15,11 SERVICES,TECHNOLOGY AND CIO,BAE SYSTEMS APPLIED INTELLIGENCE LIMITED,468797,6750,GB641407169
BEIS,Met Office,2022-06-01,11 SERVICES,TECHNOLOGY AND CIO,BAE SYSTEMS APPLIED INTELLIGENCE LIMITED,468478,7033,GB641407169
BEIS,Met Office,2022-06-14,11 SERVICES,TECHNOLOGY AND CIO,BAE SYSTEMS APPLIED INTELLIGENCE LIMITED,468807,7095,GB641407169
BEIS,Met Office,2022-06-24,11 SERVICES,TECHNOLOGY AND CIO,BAE SYSTEMS APPLIED INTELLIGENCE LIMITED,463253,7574,GB641407169
BEIS,Met Office,2022-06-15,11 SERVICES,TECHNOLOGY AND CIO,BAE SYSTEMS APPLIED INTELLIGENCE LIMITED,468815,8580,GB641407169
BEIS,Met Office,2022-06-01,11 SERVICES,TECHNOLOGY AND CIO,BAE SYSTEMS APPLIED INTELLIGENCE LIMITED,468470,8656,GB641407169
BEIS,Met Office,2022-06-30,11 SERVICES,TECHNOLOGY AND CIO,BAE SYSTEMS APPLIED INTELLIGENCE LIMITED,469281,8926.5,GB641407169
BEIS,Met Office,2022-06-27,11 SERVICES,TECHNOLOGY AND CIO,BAE SYSTEMS APPLIED INTELLIGENCE LIMITED,468796,9197,GB641407169
BEIS,Met Office,2022-06-15,11 SERVICES,TECHNOLOGY AND CIO,BAE SYSTEMS APPLIED INTELLIGENCE LIMITED,468804,9197,GB641407169
BEIS,Met Office,2022-06-30,11 SERVICES,TECHNOLOGY AND CIO,BAE SYSTEMS APPLIED INTELLIGENCE LIMITED,469282,9240,GB641407169
BEIS,Met Office,2022-06-27,11 SERVICES,TECHNOLOGY AND CIO,BAE SYSTEMS APPLIED INTELLIGENCE LIMITED,463968,9262.75,GB641407169
BEIS,Met Office,2022-06-27,11 SERVICES,TECHNOLOGY AND CIO,BAE SYSTEMS APPLIED INTELLIGENCE LIMITED,468816,9380,GB641407169
BEIS,Met Office,2022-06-01,11 SERVICES,TECHNOLOGY AND CIO,BAE SYSTEMS APPLIED INTELLIGENCE LIMITED,468474,9535.13,GB641407169
BEIS,Met Office,2022-06-30,11 SERVICES,TECHNOLOGY AND CIO,BAE SYSTEMS APPLIED INTELLIGENCE LIMITED,469278,9738,GB641407169
BEIS,Met Office,2022-06-15,11 SERVICES,TECHNOLOGY AND CIO,BAE SYSTEMS APPLIED INTELLIGENCE LIMITED,468817,9982.5,GB641407169
BEIS,Met Office,2022-06-30,11 SERVICES,TECHNOLOGY AND CIO,BAE SYSTEMS APPLIED INTELLIGENCE LIMITED,469279,10008.5,GB641407169
BEIS,Met Office,2022-06-15,11 SERVICES,TECHNOLOGY AND CIO,BAE SYSTEMS APPLIED INTELLIGENCE LIMITED,468803,10560,GB641407169
BEIS,Met Office,2022-06-01,11 SERVICES,TECHNOLOGY AND CIO,BAE SYSTEMS APPLIED INTELLIGENCE LIMITED,468468,11220,GB641407169
BEIS,Met Office,2022-06-01,11 SERVICES,TECHNOLOGY AND CIO,BAE SYSTEMS APPLIED INTELLIGENCE LIMITED,468477,11220,GB641407169
BEIS,Met Office,2022-06-01,11 SERVICES,TECHNOLOGY AND CIO,BAE SYSTEMS APPLIED INTELLIGENCE LIMITED,468487,11632.5,GB641407169
BEIS,Met Office,2022-06-13,11 SERVICES,TECHNOLOGY AND CIO,BAE SYSTEMS APPLIED INTELLIGENCE LIMITED,464922,11715,GB641407169
BEIS,Met Office,2022-06-15,11 SERVICES,TECHNOLOGY AND CIO,BAE SYSTEMS APPLIED INTELLIGENCE LIMITED,468800,11715,GB641407169
BEIS,Met Office,2022-06-01,11 SERVICES,TECHNOLOGY AND CIO,BAE SYSTEMS APPLIED INTELLIGENCE LIMITED,468469,11880,GB641407169
BEIS,Met Office,2022-06-01,11 SERVICES,TECHNOLOGY AND CIO,BAE SYSTEMS APPLIED INTELLIGENCE LIMITED,468490,11880,GB641407169
BEIS,Met Office,2022-06-30,11 SERVICES,TECHNOLOGY AND CIO,BAE SYSTEMS APPLIED INTELLIGENCE LIMITED,469280,11880,GB641407169
BEIS,Met Office,2022-06-01,11 SERVICES,TECHNOLOGY AND CIO,BAE SYSTEMS APPLIED INTELLIGENCE LIMITED,468462,12897.5,GB641407169
BEIS,Met Office,2022-06-24,11 SERVICES,TECHNOLOGY AND CIO,BAE SYSTEMS APPLIED INTELLIGENCE LIMITED,468209,12983.92,GB641407169
BEIS,Met Office,2022-06-15,11 SERVICES,TECHNOLOGY AND CIO,BAE SYSTEMS APPLIED INTELLIGENCE LIMITED,468794,13249.25,GB641407169
BEIS,Met Office,2022-06-15,11 SERVICES,TECHNOLOGY AND CIO,BAE SYSTEMS APPLIED INTELLIGENCE LIMITED,468795,14304.5,GB641407169
BEIS,Met Office,2022-06-15,11 SERVICES,TECHNOLOGY AND CIO,BAE SYSTEMS APPLIED INTELLIGENCE LIMITED,468802,15008,GB641407169
BEIS,Met Office,2022-06-01,11 SERVICES,TECHNOLOGY AND CIO,BAE SYSTEMS APPLIED INTELLIGENCE LIMITED,468460,15242.5,GB641407169
BEIS,Met Office,2022-06-30,11 SERVICES,TECHNOLOGY AND CIO,BAE SYSTEMS APPLIED INTELLIGENCE LIMITED,468812,15477,GB641407169
BEIS,Met Office,2022-06-01,11 SERVICES,TECHNOLOGY AND CIO,BAE SYSTEMS APPLIED INTELLIGENCE LIMITED,468488,16884,GB641407169
BEIS,Met Office,2022-06-01,11 SERVICES,TECHNOLOGY AND CIO,BAE SYSTEMS APPLIED INTELLIGENCE LIMITED,468489,16884,GB641407169
BEIS,Met Office,2022-06-27,11 SERVICES,TECHNOLOGY AND CIO,BAE SYSTEMS APPLIED INTELLIGENCE LIMITED,468529,16884,GB641407169
BEIS,Met Office,2022-06-15,11 SERVICES,TECHNOLOGY AND CIO,BAE SYSTEMS APPLIED INTELLIGENCE LIMITED,468799,16884,GB641407169
BEIS,Met Office,2022-06-15,11 SERVICES,TECHNOLOGY AND CIO,BAE SYSTEMS APPLIED INTELLIGENCE LIMITED,468801,17353,GB641407169
BEIS,Met Office,2022-06-01,11 SERVICES,TECHNOLOGY AND CIO,BAE SYSTEMS APPLIED INTELLIGENCE LIMITED,468464,17822,GB641407169
BEIS,Met Office,2022-06-30,11 SERVICES,TECHNOLOGY AND CIO,BAE SYSTEMS APPLIED INTELLIGENCE LIMITED,469276,19095,GB641407169
BEIS,Met Office,2022-06-09,11 SERVICES,TECHNOLOGY AND CIO,BOXXE,468745,233,734245248
BEIS,Met Office,2022-06-20,11 SERVICES,TECHNOLOGY AND CIO,CLOUDREACH EUROPE LIMITED,468985,4646.45,978187168
BEIS,Met Office,2022-06-13,11 SERVICES,TECHNOLOGY AND CIO,CLOUDREACH EUROPE LIMITED,468791,5150,978187168
BEIS,Met Office,2022-06-14,11 SERVICES,TECHNOLOGY AND CIO,COMPUTACENTER (UK) LTD,468557,-286875,490334648
BEIS,Met Office,2022-06-22,07 EQUIPMENT,TECHNOLOGY AND CIO,COMPUTACENTER (UK) LTD,469072,400.18,490334648
BEIS,Met Office,2022-06-29,10 EQUIPMENT MAINTENANCE,TECHNOLOGY AND CIO,COMPUTACENTER (UK) LTD,469232,3033.54,490334648
BEIS,Met Office,2022-06-14,07 EQUIPMENT,TECHNOLOGY AND CIO,COMPUTACENTER (UK) LTD,468837,9184.5,490334648
BEIS,Met Office,2022-06-27,08 SOFTWARE LICENCES,TECHNOLOGY AND CIO,COMPUTACENTER (UK) LTD,469173,44289.14,490334648
BEIS,Met Office,2022-06-17,INFORMATION TECHNOLOGY,TECHNOLOGY AND CIO,COMPUTACENTER (UK) LTD,468966,201696,490334648
BEIS,Met Office,2022-06-14,11 SERVICES,TECHNOLOGY AND CIO,COMPUTACENTER (UK) LTD,467513,286875,490334648
BEIS,Met Office,2022-06-23,11 SERVICES,TECHNOLOGY AND CIO,FORGEROCK LTD,469032,4000,988863532
BEIS,Met Office,2022-06-23,10 EQUIPMENT MAINTENANCE,TECHNOLOGY AND CIO,GCHQ PUBLIC ACCOUNT - CESG,469137,16816.03,888813658
BEIS,Met Office,2022-06-13,08 SOFTWARE LICENCES,TECHNOLOGY AND CIO,GOOGLE IRELAND LTD,468611,49.24,6388047V
BEIS,Met Office,2022-06-08,08 SOFTWARE LICENCES,TECHNOLOGY AND CIO,Ibm United Kingdom Ltd,468536,6292.52,107328000
BEIS,Met Office,2022-06-08,08 SOFTWARE LICENCES,TECHNOLOGY AND CIO,Ibm United Kingdom Ltd,468608,9957.7,107328000
BEIS,Met Office,2022-06-29,08 SOFTWARE LICENCES,TECHNOLOGY AND CIO,Ibm United Kingdom Ltd,469323,49634.55,107328000
BEIS,Met Office,2022-06-21,08 SOFTWARE LICENCES,TECHNOLOGY AND CIO,Ibm United Kingdom Ltd,469024,404848.2,107328000
BEIS,Met Office,2022-06-28,08 SOFTWARE LICENCES,TECHNOLOGY AND CIO,NEXUS OPEN SYSTEMS LTD,469288,3219.81,723221673
BEIS,Met Office,2022-06-27,07 EQUIPMENT,TECHNOLOGY AND CIO,NEXUS OPEN SYSTEMS LTD,469221,9999.99,723221673
BEIS,Met Office,2022-06-23,11 SERVICES,TECHNOLOGY AND CIO,NTT DATA UK LTD,464669,-11854,159334590
BEIS,Met Office,2022-06-23,11 SERVICES,TECHNOLOGY AND CIO,NTT DATA UK LTD,466237,2868,159334590
BEIS,Met Office,2022-06-23,11 SERVICES,TECHNOLOGY AND CIO,NTT DATA UK LTD,468053,3064,159334590
BEIS,Met Office,2022-06-23,11 SERVICES,TECHNOLOGY AND CIO,NTT DATA UK LTD,466237,7833.27,159334590
BEIS,Met Office,2022-06-23,11 SERVICES,TECHNOLOGY AND CIO,NTT DATA UK LTD,468053,8790,159334590
BEIS,Met Office,2022-06-10,10 EQUIPMENT MAINTENANCE,TECHNOLOGY AND CIO,ORACLE CORPORATION UK LTD,468743,21269.97,391313073
BEIS,Met Office,2022-06-13,10 EQUIPMENT MAINTENANCE,TECHNOLOGY AND CIO,ORACLE CORPORATION UK LTD,468833,21269.97,391313073
BEIS,Met Office,2022-06-15,08 SOFTWARE LICENCES,TECHNOLOGY AND CIO,PRESENTATION CARTOGRAPHY LTD,468906,258.25,-
BEIS,Met Office,2022-06-15,08 SOFTWARE LICENCES,TECHNOLOGY AND CIO,PRESENTATION CARTOGRAPHY LTD,468906,1033,-
BEIS,Met Office,2022-06-27,08 SOFTWARE LICENCES,TECHNOLOGY AND CIO,PROSPERON NETWORKS LTD,469222,1352.8,889545649
BEIS,Met Office,2022-06-01,11 SERVICES,TECHNOLOGY AND CIO,SEC-1 LTD,468449,6825,777853369
BEIS,Met Office,2022-06-07,11 SERVICES,TECHNOLOGY AND CIO,SEC-1 LTD,468520,11843.17,777853369
BEIS,Met Office,2022-06-23,08 SOFTWARE LICENCES,TECHNOLOGY AND CIO,SPECIALIST COMPUTER CENTRES,469121,1127,313651680
BEIS,Met Office,2022-06-01,11 SERVICES,TECHNOLOGY AND CIO,SSE CONTRACTING LTD,468538,10912.87,382894546
BEIS,Met Office,2022-06-09,11 SERVICES,TECHNOLOGY AND CIO,WIREFAST LTD,468604,89.63,749536001
BEIS,Met Office,2022-06-09,11 SERVICES,TECHNOLOGY AND CIO,WIREFAST LTD,468605,872.14,749536001
BEIS,Met Office,2022-06-09,11 SERVICES,TECHNOLOGY AND CIO,WIREFAST LTD,468603,1755.25,749536001
BEIS,Met Office,2022-06-23,11 SERVICES,TECHNOLOGY AND CIO,WSO2 (UK) LTD,469123,30000,977308971
BEIS,Met Office,2022-06-23,08 SOFTWARE LICENCES,TECHNOLOGY AND CIO,WSO2 (UK) LTD,469123,128981.05,977308971
